bitfinex/quotes_ETHUSD_20260310
["timestamp","ask_amount","ask_price","bid_price","bid_amount"]
[1773110419404,1.09544906,2044.7,2043.7,1.16582357]
[1773110420136,3.8794964,2044.9,2043.7,1.16582357]
[1773110420433,1.22259667,2044.9,2043.9,1.16582357]
[1773110420717,5.98547156,2045.0,2043.9,1.16582357]
[1773110420718,2.3179483,2045.0,2043.9,1.16582357]
[1773110422420,4.45472344,2044.6,2043.6,2.54982357]
[1773110422718,1.22267325,2044.7,2043.7,1.16582357]
[1773110423521,2.31812231,2044.7,2043.7,1.16582357]
[1773110423917,1.22267325,2044.7,2043.7,1.16582357]
[1773110424325,2.31812231,2044.7,2043.8,1.22321166]
[1773110424621,2.31812231,2044.7,2043.7,2.38904795]
[1773110424918,1.22267325,2044.7,2043.7,1.16582357]
[1773110425120,1.09544906,2044.6,2043.7,2.38909047]
[1773110426022,1.09544906,2044.6,2043.7,1.16582357]
[1773110426625,1.22279285,2044.5,2043.7,1.16582357]
[1773110426820,1.09544906,2044.3,2043.4,1.16582357]
[1773110427028,1.09544906,2044.3,2043.4,2.38926848]
[1773110428217,1.22479285,2044.5,2043.5,1.16582357]
[1773110428606,1.22479285,2044.5,2043.6,1.22333137]
[1773110429326,1.22479285,2044.5,2043.6,1.16582357]
[1773110430327,1.22479285,2044.5,2043.4,1.16582357]
[1773110430629,1.09744906,2044.5,2043.4,2.38923685]
[1773110430947,1.04650143,2044.4,2043.4,1.16582357]
[1773110431247,1.04650143,2044.4,2043.4,2.38926239]
[1773110432716,1.04650143,2044.4,2043.3,4.89402215]
[1773110432717,1.09544906,2044.1,2043.1,1.16582357]
[1773110433530,1.06678868,2043.8,2042.8,3.43284549]
[1773110434629,1.06678868,2043.8,2042.8,2.20904235]
[1773110434812,2.29006019,2043.7,2042.8,2.20904235]
[1773110435015,1.06678868,2043.5,2042.8,1.13640067]
[1773110435816,1.06678868,2043.5,2042.8,0.001]
[1773110437219,1.22345111,2043.4,2042.8,0.001]
[1773110438043,1.22345111,2043.4,2042.8,1.07364168]
[1773110439036,1.22309197,2044.0,2042.8,1.07364168]
[1773110439259,1.22291248,2044.3,2042.9,1.22375055]
[1773110439586,1.22289739,2044.4,2043.1,1.07264168]
[1773110439719,1.06678868,2044.3,2043.1,1.07264168]
[1773110440219,1.22289739,2044.4,2043.1,1.07264168]
[1773110441428,4.89341068,2044.5,2043.3,1.07264168]
[1773110442014,4.89341068,2044.5,2043.3,1.07364168]
[1773110442215,0.002,2044.2,2043.3,1.07364168]
[1773110442637,0.002,2044.2,2043.4,1.07264168]
[1773110442938,0.002,2044.2,2043.3,0.001]
[1773110442939,1.06878868,2044.2,2043.3,0.001]
[1773110443342,2.29000034,2043.8,2043.3,0.001]
[1773110444141,4.41830784,2043.5,2042.8,0.001]
[1773110445053,1.06678868,2043.5,2042.8,0.001]
[1773110445357,1.22345111,2043.4,2042.8,0.001]
[1773110445940,2.29023979,2043.4,2042.8,0.001]
[1773110446252,4.41830784,2043.2,2042.8,0.001]
[1773110446433,1.06678868,2043.2,2042.8,0.001]
[1773110446751,1.22345111,2043.4,2042.8,0.001]
[1773110447469,5.96059312,2043.5,2042.8,0.001]
[1773110447768,4.41830784,2043.1,2042.8,0.001]
[1773110448172,4.41830784,2042.8,2042.5,0.001]
[1773110448326,1.06678868,2042.8,2042.5,0.001]
[1773110448655,1.06678868,2042.8,2042.3,0.001]
[1773110448656,3.35151916,2042.6,2042.3,0.001]
[1773110448948,1.06678868,2042.8,2042.3,0.001]
[1773110449558,1.2238424,2042.8,2042.3,0.001]
[1773110450154,2.29063108,2042.8,2042.3,0.001]
[1773110451568,2.61673173,2043.0,2042.3,0.001]
[1773110451738,1.22373173,2043.0,2042.3,0.001]
[1773110452139,2.29052041,2043.0,2042.3,0.001]
[1773110453038,1.2236615,2043.1,2042.3,0.001]
[1773110453543,5.65265968,2043.1,2042.3,0.001]
[1773110453745,2.30114052,2043.1,2042.3,0.001]
[1773110454267,4.42899818,2043.0,2042.3,0.001]
[1773110454436,1.07747902,2042.9,2042.3,0.001]
[1773110454769,2.47147902,2042.9,2042.3,0.001]
[1773110454939,1.07747902,2042.8,2042.3,0.001]
[1773110455567,1.394,2043.0,2042.3,0.001]
[1773110455943,4.89452302,2043.4,2042.3,0.001]
[1773110455944,1.07747902,2044.1,2042.6,1.0270773]
[1773110456144,1.07747902,2043.8,2042.6,1.0270773]
[1773110456375,0.002,2043.2,2042.5,2.63640487]
[1773110456556,0.002,2043.2,2042.5,0.001]
[1773110457965,1.22557086,2043.2,2042.5,0.001]
[1773110459847,0.002,2043.2,2042.6,1.22393028]
[1773110463149,0.002,2043.2,2042.7,1.0270773]
[1773110463647,0.002,2043.2,2042.6,1.22393028]
[1773110463852,0.002,2043.2,2042.5,1.22494355]
[1773110464079,0.002,2043.2,2042.6,1.13728771]
[1773110464744,0.002,2043.4,2042.6,1.13728771]
[1773110465154,0.002,2043.4,2042.6,3.4147886]
[1773110465358,0.002,2043.4,2042.7,1.13728771]
[1773110465993,0.002,2043.4,2042.8,1.22381045]
[1773110466292,0.002,2043.4,2042.9,1.13728771]
[1773110466590,0.002,2043.7,2043.1,1.13728771]
[1773110466888,0.002,2043.7,2043.0,2.27750089]
[1773110467069,0.002,2043.7,2042.9,3.4147886]
[1773110467681,0.002,2043.7,2043.0,1.13728771]
[1773110468564,0.002,2043.7,2043.1,1.22363075]
[1773110468754,0.002,2043.7,2043.1,2.36091846]
[1773110468950,1.15313717,2044.9,2043.1,1.22363075]
[1773110469158,1.15313717,2044.7,2043.4,3.4147886]
[1773110469969,1.15313717,2044.7,2043.5,1.13728771]
[1773110470585,1.15313717,2044.7,2043.6,1.13728771]
[1773110470885,0.002,2044.5,2043.7,2.36055922]
[1773110471088,1.15313717,2044.4,2043.4,2.3606985]
[1773110471380,1.15313717,2044.4,2043.5,1.13728771]
[1773110471550,2.54513717,2044.4,2043.5,1.13728771]
[1773110472953,1.15313717,2044.1,2043.2,2.27750089]
[1773110473280,1.15313717,2044.1,2043.1,1.22358672]
[1773110473863,2.54513717,2044.2,2043.2,1.13728771]
[1773110474187,1.15313717,2044.1,2043.1,1.22358672]
[1773110474583,1.15313717,2044.1,2043.0,1.22365678]
[1773110474985,1.15313717,2043.9,2042.9,2.36099135]
[1773110475488,1.391,2043.8,2042.9,2.36099135]
[1773110477289,1.22327151,2043.7,2042.9,2.36099135]
[1773110477469,1.22327151,2043.7,2042.8,1.22478919]
[1773110477470,1.15313717,2043.6,2042.8,1.22478919]
[1773110478485,3.76738389,2043.8,2042.8,2.3620769]
[1773110478660,1.15313717,2043.7,2042.8,2.3620769]
[1773110479267,1.22333137,2043.6,2042.8,2.3620769]
[1773110479669,1.22333137,2043.6,2042.8,1.22480972]
[1773110479670,2.54313717,2043.5,2042.8,1.22480972]
[1773110479870,1.15313717,2043.4,2042.8,0.001]
[1773110481187,1.22351098,2043.3,2042.8,0.001]
[1773110481592,1.15313717,2043.1,2042.5,0.001]
[1773110481794,1.15313717,2043.0,2042.5,0.001]
[1773110482098,1.15313717,2042.7,2042.0,0.001]
[1773110482589,1.15313717,2042.7,2042.0,1.22528259]
[1773110482967,1.15313717,2042.7,2042.0,0.001]
[1773110483182,1.22393028,2042.6,2042.0,0.001]
[1773110483493,2.37706745,2042.6,2042.0,0.001]
[1773110484189,2.37706745,2042.6,2042.5,0.001]
[1773110484869,1.16521123,2042.5,2042.3,0.001]
[1773110485068,1.16521123,2042.5,2042.0,0.001]
[1773110485069,1.16521123,2042.4,2042.0,0.001]
[1773110485266,2.38944118,2042.1,2042.0,0.001]
[1773110485465,1.16521123,2042.0,2041.7,0.001]
[1773110487097,1.22422995,2042.1,2041.7,0.001]
[1773110487291,1.16521123,2042.1,2041.5,0.001]
[1773110487495,1.16521123,2041.9,2041.5,0.001]
[1773110489281,2.3895611,2041.9,2041.5,0.001]
[1773110489590,1.16521123,2041.8,2041.5,0.001]
[1773110490693,1.16521123,2041.8,2041.3,0.001]
[1773110490694,1.16521123,2041.7,2041.3,0.001]
[1773110491210,1.16521123,2041.7,2041.0,0.001]
[1773110491365,1.16521123,2041.5,2041.0,0.001]
[1773110491566,1.22451534,2041.7,2041.0,0.001]
[1773110491772,2.55521123,2041.6,2041.0,0.001]
[1773110493067,1.16521123,2041.5,2041.0,0.001]
[1773110493268,1.16521123,2041.3,2040.8,0.001]
[1773110493597,1.07342636,2041.0,2040.6,0.001]
[1773110493769,2.46442636,2040.9,2040.6,0.001]
[1773110494295,1.391,2040.8,2040.6,0.001]
[1773110495494,1.07342636,2040.9,2040.6,0.001]
[1773110495794,1.391,2040.8,2040.6,0.001]
[1773110497266,1.391,2040.8,2040.7,0.001]
[1773110497689,1.22464975,2041.4,2040.7,0.001]
[1773110497905,1.392,2041.3,2040.7,0.001]
[1773110498401,3.3600486,2041.1,2040.7,0.001]
[1773110498576,4.43347496,2041.1,2040.7,0.001]
[1773110499318,1.22464975,2041.4,2040.7,0.001]
[1773110499643,1.392,2041.0,2040.7,0.001]
[1773110499771,2.61694945,2041.0,2040.7,0.001]
[1773110500412,1.07342636,2041.4,2040.7,0.001]
[1773110500570,1.07342636,2041.2,2040.7,0.001]
[1773110501279,1.07342636,2041.2,2040.6,0.001]
[1773110501821,1.22480958,2041.2,2040.6,0.001]
[1773110501980,1.393,2041.1,2040.6,0.001]
[1773110502176,1.22480958,2041.2,2040.6,0.001]
[1773110502509,1.393,2041.1,2040.6,1.11471168]
[1773110502668,1.07342636,2041.4,2040.6,1.11471168]
[1773110504514,1.393,2041.4,2040.8,1.11371168]
[1773110505087,1.393,2041.4,2040.7,1.22506982]
[1773110505680,1.393,2041.3,2040.7,1.22506982]
[1773110506511,2.61771035,2041.3,2040.6,4.90129053]
[1773110506809,2.61771035,2041.3,2040.6,1.22612986]
[1773110506810,1.394,2041.2,2040.6,1.22612986]
[1773110508591,2.61878469,2041.2,2040.6,1.22612986]
[1773110508796,1.394,2041.2,2040.6,1.22612986]
[1773110509002,1.394,2041.2,2040.8,0.001]
[1773110509212,0.002,2041.4,2040.8,1.11471168]
[1773110510605,0.002,2041.6,2041.1,1.11371168]
[1773110510805,0.002,2041.9,2041.2,1.02713672]
[1773110511223,1.393,2042.3,2041.3,1.02713672]
[1773110511430,1.393,2042.3,2041.4,3.30840166]
[1773110511622,1.393,2042.3,2041.5,1.02713672]
[1773110513315,1.393,2042.3,2041.6,1.22452978]
[1773110515106,1.393,2042.3,2041.3,7.18008577]
[1773110515107,1.393,2042.3,2041.3,7.18001102]
[1773110515329,2.32554834,2042.1,2041.3,1.22470485]
[1773110515647,2.61714568,2042.3,2041.4,1.02713672]
[1773110515811,1.10131839,2042.2,2041.3,1.22466381]
[1773110517122,1.10131839,2042.2,2041.2,1.22471974]
[1773110517323,1.10131839,2041.9,2041.1,3.30840166]
[1773110517515,1.10131839,2041.9,2041.1,1.22479109]
[1773110518845,1.10131839,2041.9,2040.9,4.89973605]
[1773110519545,1.22440983,2041.8,2040.9,1.02713672]
[1773110519713,1.391,2041.7,2040.9,1.02713672]
[1773110519909,1.22440983,2041.8,2040.9,1.02713672]
[1773110520215,1.391,2041.7,2040.9,1.02713672]
[1773110520428,1.391,2041.6,2040.9,1.02713672]
[1773110521608,1.22458976,2041.5,2040.9,2.25205183]
[1773110522034,1.22458976,2041.5,2040.8,0.001]
[1773110522035,1.10131839,2041.4,2040.8,0.001]
[1773110522617,1.39,2041.3,2040.8,0.001]
[1773110523030,1.10131839,2041.2,2040.8,0.001]
[1773110523338,1.22458976,2041.5,2040.8,0.001]
[1773110523538,0.002,2041.7,2040.8,1.22600604]
[1773110523738,1.39,2041.6,2041.0,1.22488975]
[1773110524143,0.002,2041.9,2041.1,1.0380354]
[1773110524438,0.002,2041.9,2041.2,1.0380354]
[1773110524625,1.22617081,2042.2,2041.3,1.0380354]
[1773110524626,0.002,2042.2,2041.3,1.0380354]
[1773110524825,0.002,2042.2,2041.5,1.0380354]
[1773110525034,1.22617931,2042.2,2041.5,1.0380354]
[1773110525336,0.002,2042.2,2041.5,1.0380354]
[1773110525732,0.002,2042.2,2041.6,1.22452978]
[1773110526106,0.002,2042.2,2041.7,1.0380354]
[1773110527018,0.002,2042.2,2041.4,2.26263261]
[1773110528120,1.22617001,2042.2,2041.4,2.26263261]
[1773110530648,2.30989992,2042.2,2041.4,2.26263261]
[1773110531154,1.39,2042.2,2041.5,1.0380354]
[1773110531450,0.002,2042.2,2041.5,1.0380354]
[1773110532529,0.002,2042.2,2041.6,1.22452978]
[1773110532844,0.002,2042.2,2041.5,1.0380354]
[1773110533049,0.002,2042.2,2041.5,1.22454936]
[1773110533548,0.002,2042.2,2041.6,1.0380354]
[1773110533754,2.30736247,2043.1,2042.0,2.28126494]
[1773110533952,1.387,2043.1,2042.2,1.0380354]
[1773110534339,0.002,2043.2,2042.3,1.0380354]
[1773110534518,0.002,2043.2,2042.4,2.26208553]
[1773110534725,0.002,2043.2,2042.5,1.0380354]
[1773110536727,1.22557086,2043.2,2042.6,1.22393028]
[1773110537131,0.002,2043.2,2042.6,1.22393028]
[1773110537345,1.22557086,2043.2,2042.5,2.26198734]
[1773110537524,1.22557086,2043.2,2042.5,1.22395194]
[1773110537723,2.30930077,2043.2,2042.4,1.22400564]
[1773110538541,1.22557086,2043.2,2042.4,2.26204104]
[1773110538739,1.22557086,2043.2,2042.4,1.0380354]
[1773110538942,1.22557086,2043.2,2042.3,1.2240669]
[1773110538943,1.08372991,2043.1,2042.3,1.2240669]
[1773110540141,2.46872991,2043.1,2042.3,1.2240669]
[1773110540745,1.22369065,2043.0,2042.3,1.2240669]
[1773110541150,1.08572991,2044.5,2042.8,3.43842968]
[1773110541331,0.002,2044.7,2043.7,2.27296349]
[1773110541520,1.22231877,2045.3,2044.0,1.0380354]
[1773110541724,1.22231877,2045.3,2044.2,1.0380354]
[1773110542947,1.22231877,2045.3,2044.4,1.0380354]
[1773110543126,2.59531877,2045.3,2044.4,1.0380354]
[1773110543844,3.3600486,2045.7,2044.3,1.22291248]
[1773110543845,0.065536,2046.3,2044.3,1.0380354]
[1773110544047,5.97083771,2046.3,2044.7,1.0380354]
[1773110544356,2.54211866,2046.8,2044.9,1.0380354]
[1773110544357,2.30524498,2046.7,2044.9,1.0380354]
[1773110544692,2.30524498,2046.7,2044.8,0.065536]
[1773110544693,1.08372991,2046.6,2045.3,1.0380354]
[1773110544840,1.08372991,2046.0,2044.9,1.0380354]
[1773110545169,2.45072991,2046.0,2044.9,2.26058341]
[1773110545335,2.45072991,2046.0,2044.9,1.0380354]
[1773110545536,2.45072991,2046.0,2044.9,2.2605804]
[1773110546162,1.367,2046.0,2045.0,1.0380354]
[1773110546466,2.60765466,2047.3,2044.9,1.222545]
[1773110546467,1.08372991,2046.6,2045.2,1.0380354]
[1773110546633,0.002,2046.4,2045.2,1.0380354]
[1773110546829,0.002,2046.4,2045.1,0.065536]
[1773110546830,0.002,2046.4,2045.3,1.0380354]
[1773110547036,4.44377851,2046.2,2044.9,2.26054715]
[1773110547236,1.08372991,2046.2,2045.0,1.0380354]
[1773110547649,2.45272991,2046.2,2045.0,1.0380354]
[1773110548170,1.08372991,2046.2,2045.0,1.0380354]
[1773110548359,2.45572991,2046.4,2045.0,1.0380354]
[1773110548952,1.22171724,2046.3,2045.1,2.26046951]
[1773110549153,1.08372991,2046.2,2044.9,2.26058907]
[1773110549381,1.08372991,2046.2,2045.0,1.0380354]
[1773110549570,1.22369657,2046.4,2045.0,1.0380354]
[1773110549756,1.22366248,2046.4,2045.0,1.0380354]
[1773110550079,1.22366099,2046.4,2045.0,1.0380354]
[1773110551161,0.002,2046.4,2045.2,1.0380354]
[1773110551384,1.08572991,2046.4,2045.2,1.0380354]
[1773110551771,2.45672991,2046.4,2045.2,1.0380354]
[1773110551974,1.08372991,2046.2,2045.1,1.22243411]
[1773110552274,3.34540431,2046.3,2045.2,1.0380354]
[1773110552482,0.002,2046.4,2045.2,1.0380354]
[1773110552651,1.373,2046.4,2045.2,1.0380354]
[1773110552856,2.45672991,2046.4,2045.2,1.0380354]
[1773110553271,1.22171724,2046.3,2045.3,1.22231457]
[1773110553971,1.22171724,2046.3,2045.3,2.3092977]
[1773110554173,1.22171724,2046.3,2045.4,1.08698313]
[1773110554369,1.372,2046.3,2045.4,1.08698313]
[1773110555160,1.374,2046.4,2045.5,2.30917819]
[1773110555490,0.002,2046.4,2045.6,1.08698313]
[1773110556072,0.002,2046.6,2045.6,1.08698313]
[1773110556265,0.002,2046.9,2045.7,1.08698313]
[1773110556611,1.22336108,2046.9,2045.7,1.08698313]
[1773110557163,4.56700215,2046.6,2045.4,1.08698313]
[1773110557362,1.22159784,2046.5,2045.4,1.08698313]
[1773110557989,2.34888083,2046.6,2045.4,1.08698313]
[1773110558191,2.34883161,2046.6,2045.4,1.08698313]
[1773110559070,0.002,2046.9,2045.4,1.08698313]
[1773110559071,2.35066628,2046.9,2045.4,1.08698313]
[1773110559381,2.35066628,2046.9,2045.6,1.08698313]
[1773110559382,0.002,2046.4,2045.6,1.08698313]
[1773110560561,0.002,2046.4,2045.5,1.22219506]
[1773110560921,0.002,2046.4,2045.6,1.08698313]
[1773110561274,0.002,2046.4,2045.8,1.08698313]
[1773110561679,0.002,2046.6,2045.8,1.08698313]
[1773110563367,0.002,2046.6,2045.9,1.2219561]
[1773110563702,1.12929125,2046.6,2045.4,2.30923794]
[1773110563904,1.12729125,2048.8,2046.1,4.11148246]
[1773110564203,1.37,2049.3,2047.1,4.10780616]
[1773110564379,1.21997286,2049.3,2047.6,1.08698313]
[1773110564577,1.21997286,2049.3,2047.4,0.065536]
[1773110564578,1.21992473,2049.4,2047.8,1.08698313]
[1773110564815,2.34686293,2049.9,2048.1,0.065536]
[1773110564973,3.34540431,2050.3,2048.4,1.08698313]
[1773110564974,2.34665814,2050.3,2048.4,1.08698313]
[1773110565320,1.12729125,2051.2,2049.2,1.08698313]
[1773110565474,1.21885817,2051.1,2049.4,1.08698313]
[1773110565777,0.77791303,2051.9,2049.4,1.08698313]
[1773110565778,1.466,2052.4,2049.6,1.08698313]
[1773110565980,0.93296934,2055.2,2052.7,1.08698313]
[1773110566221,0.93296934,2055.2,2052.6,2.69714862]
[1773110566222,4.86617961,2055.1,2052.6,2.69714862]
[1773110566370,4.86617961,2055.1,2051.7,1.08698313]
[1773110566371,1.12729125,2054.1,2051.7,1.08698313]
[1773110566571,1.12729125,2053.9,2052.5,0.14948499]
[1773110566905,3.34540431,2054.3,2052.3,9.75091907]
[1773110566906,1.12729125,2054.3,2052.3,9.75091907]
[1773110567254,1.12729125,2054.2,2052.4,1.08698313]
[1773110567498,1.21707803,2054.1,2052.5,1.21802679]
[1773110567802,2.42702675,2053.9,2052.3,9.75091907]
[1773110568015,2.42702675,2053.9,2052.4,1.22719171]
[1773110568376,1.21707803,2054.1,2052.4,1.22719171]
[1773110568690,1.21707803,2054.1,2052.6,1.22419171]
[1773110569468,4.86831215,2054.2,2052.3,9.75091907]
[1773110569469,6.15818335,2054.2,2052.3,9.75091907]
[1773110569672,3.32009107,2053.8,2052.3,9.75091907]
[1773110569876,1.2898712,2054.7,2052.4,1.22719171]
[1773110570123,1.21648581,2055.1,2052.8,1.3766767]
[1773110570284,1.21648581,2055.1,2053.0,1.22719171]
[1773110570470,1.21648581,2055.1,2052.3,10.96904246]
[1773110570471,1.2898712,2054.7,2052.3,10.96904246]
[1773110570676,2.43002675,2053.8,2051.9,8.12011271]
[1773110570875,1.2898712,2053.5,2051.9,5.67454587]
[1773110571082,3.32009107,2053.2,2051.5,1.22719171]
[1773110571378,3.32009107,2053.2,2051.3,7.57208135]
[1773110571379,1.21731508,2053.7,2051.7,1.22719171]
[1773110571582,1.21731508,2053.7,2052.6,0.001]
[1773110571794,4.53740615,2053.7,2052.6,0.001]
[1773110572009,1.21731508,2053.7,2051.7,1.22719171]
[1773110572325,0.002,2054.0,2051.6,1.21856112]
[1773110572326,0.002,2054.0,2052.4,1.22819171]
[1773110572486,0.002,2054.0,2052.6,1.22719171]
[1773110572487,1.21913949,2054.0,2052.6,1.22719171]
[1773110573099,1.21918008,2054.0,2052.6,1.22719171]
[1773110573431,0.002,2054.0,2052.8,1.22719171]
[1773110574216,3.32009107,2053.9,2052.4,0.001]
[1773110574521,0.96494,2053.8,2052.4,0.001]
[1773110575091,1.88002675,2053.9,2052.4,1.22819171]
[1773110575391,5.20011782,2053.9,2052.4,1.22819171]
[1773110575581,1.21725581,2053.8,2052.4,1.22819171]
[1773110576596,1.21725581,2053.8,2052.4,2.44627172]
[1773110576999,1.21725581,2053.8,2052.5,1.22719171]
[1773110577514,1.21725581,2053.8,2052.5,1.21799313]
[1773110577515,1.16725581,2053.8,2052.5,1.21799313]
[1773110577718,1.16725581,2053.8,2052.6,1.22719171]
[1773110579240,1.16725581,2053.8,2052.4,0.001]
[1773110579241,3.32009107,2053.7,2052.4,0.001]
[1773110579405,1.21737436,2053.6,2052.4,0.001]
[1773110580338,5.46277474,2053.6,2052.4,0.001]
[1773110581031,0.92136872,2053.5,2052.4,0.001]
[1773110581232,3.32009107,2053.3,2052.4,0.001]
[1773110581433,1.21737436,2053.6,2052.1,0.001]
[1773110581738,1.21725581,2053.9,2052.3,1.22719171]
[1773110582437,1.21916331,2054.0,2052.4,1.22719171]
[1773110582814,1.21716331,2054.0,2052.4,1.22719171]
[1773110583019,1.16916331,2054.0,2052.4,1.22719171]
[1773110583526,4.86831929,2054.1,2052.5,2.52452954]
[1773110583730,4.86831929,2054.1,2052.6,1.30650275]
[1773110583941,9.09970206,2054.1,2052.6,1.30650275]
[1773110584240,9.09970206,2054.1,2052.3,4.87254246]
[1773110584241,0.9112917,2054.0,2052.3,1.2181173]
[1773110584412,2.77287253,2053.9,2052.3,1.2181173]
[1773110584609,4.70409107,2053.8,2052.2,2.5247067]
[1773110584822,0.9112917,2053.7,2052.2,2.52470467]
[1773110585008,1.384,2053.8,2052.3,1.30650275]
[1773110585326,5.56142097,2053.8,2052.3,1.30650275]
[1773110585641,3.32009107,2053.5,2052.5,0.001]
[1773110585814,2.12464498,2053.7,2052.5,0.001]
[1773110586231,3.32009107,2053.3,2052.5,0.001]
[1773110586429,3.32009107,2053.3,2052.3,0.001]
[1773110586631,4.22245869,2053.0,2052.3,0.001]
[1773110586837,5.60945869,2053.0,2052.3,0.001]
[1773110587163,2.28936762,2053.0,2052.3,0.001]
[1773110587362,5.60945869,2053.0,2052.3,0.001]
[1773110587523,1.21796745,2052.6,2052.1,0.001]
[1773110587923,1.21796745,2052.6,2051.3,1.30650275]
[1773110589252,1.21796745,2052.6,2050.9,1.30650275]
[1773110589656,4.87186982,2052.7,2051.1,1.30650275]
[1773110590241,8.19196089,2052.7,2051.1,1.30650275]
[1773110590448,3.32009107,2052.4,2051.1,1.30650275]
[1773110590766,3.32009107,2052.4,2050.6,7.59584346]
[1773110590767,3.32009107,2052.1,2050.7,1.21904089]
[1773110590951,1.393,2052.5,2050.8,1.30650275]
[1773110591152,4.87186982,2052.7,2050.8,1.30650275]
[1773110591675,4.87186982,2052.7,2051.0,1.30650275]
[1773110591964,3.32009107,2052.5,2051.0,1.30650275]
[1773110592169,3.32009107,2052.2,2050.7,1.21905318]
[1773110592380,1.395,2052.1,2050.7,1.21905318]
[1773110592533,0.88000203,2052.2,2050.7,1.30650275]
[1773110593028,4.2000931,2052.2,2050.7,1.30650275]
[1773110593229,1.395,2052.3,2050.7,1.30650275]
[1773110593434,0.87588496,2052.6,2050.7,1.30650275]
[1773110593657,1.21802679,2052.5,2050.9,1.30650275]
[1773110594433,4.53811786,2052.5,2050.9,1.30650275]
[1773110595040,3.32009107,2052.2,2050.9,1.30650275]
[1773110595232,2.08569134,2052.5,2050.9,1.30650275]
[1773110595764,4.87210718,2052.6,2051.1,1.30650275]
[1773110596062,3.32009107,2052.5,2051.1,1.30650275]
[1773110596439,3.32009107,2052.2,2050.7,1.30650275]
[1773110596674,3.32009107,2052.5,2050.8,1.30650275]
[1773110596834,1.398,2052.3,2050.8,1.30650275]
[1773110597364,4.17954636,2052.2,2050.8,1.30650275]
[1773110597735,1.21832358,2052.0,2050.9,1.30650275]
[1773110599350,4.87258198,2052.5,2051.0,1.30750275]
[1773110599854,4.87258198,2052.5,2051.0,2.52637564]
[1773110599855,0.85126287,2052.4,2051.0,2.52637564]
[1773110600057,3.32009107,2052.3,2051.0,1.30750275]
[1773110600241,0.85126287,2052.4,2051.0,2.52640692]
[1773110600440,0.85126287,2052.4,2051.0,1.21990417]
[1773110600647,4.87258198,2052.5,2051.1,1.30650275]
[1773110600831,0.84717239,2052.2,2051.0,0.001]
[1773110601255,2.42602675,2051.9,2051.0,0.001]
[1773110601756,1.21844234,2051.8,2051.0,0.001]
[1773110601956,1.21844234,2051.8,2050.8,0.001]
[1773110603371,2.61844234,2051.8,2050.8,0.001]
[1773110604164,4.87234457,2052.7,2050.8,1.30750275]
[1773110604359,4.87234457,2052.7,2050.9,1.30650275]
[1773110604541,5.70222624,2052.7,2050.9,1.30650275]
[1773110604863,4.87234457,2052.7,2051.2,1.30650275]
[1773110605442,8.19243564,2052.7,2051.2,1.30650275]
[1773110605637,4.87234457,2052.7,2051.2,1.30650275]
[1773110605869,1.21802679,2052.5,2051.3,1.30650275]
[1773110606483,2.03978535,2052.5,2051.1,1.21880857]
[1773110606772,4.14184963,2052.4,2050.9,2.52543463]
[1773110606949,4.14184963,2052.4,2051.0,1.30650275]
[1773110607143,3.32009107,2051.8,2050.8,0.001]
[1773110607554,4.13778753,2051.8,2050.8,0.001]
[1773110607767,1.21850173,2051.7,2050.8,0.001]
[1773110609945,5.6835934,2051.8,2050.8,0.001]
[1773110610775,0.80553735,2051.7,2050.8,0.001]
[1773110611948,1.21856112,2051.6,2050.8,0.001]
[1773110612665,2.61656112,2051.6,2050.8,0.001]
[1773110612976,2.61656112,2051.6,2051.0,0.001]
[1773110613349,1.21856112,2051.6,2051.0,0.001]
[1773110613680,2.61656112,2051.6,2051.0,0.001]
[1773110616277,1.398,2051.5,2051.0,0.001]
[1773110616779,0.78108879,2051.3,2050.8,0.001]
[1773110617150,2.17506038,2051.2,2050.5,0.001]
[1773110617779,2.17506038,2051.2,2049.6,2.2178064]
[1773110617780,3.32917289,2050.7,2049.5,1.26601154]
[1773110617976,1.398,2050.6,2049.5,1.26601154]
[1773110618190,1.21921482,2050.5,2049.5,1.26601154]
[1773110618552,3.32917289,2050.4,2049.5,1.26601154]
[1773110618775,1.21921482,2050.5,2049.1,3.4378277]
[1773110618776,3.32917289,2050.1,2049.1,1.26601154]
[1773110619079,3.32917289,2050.4,2049.1,1.26601154]
[1773110619268,3.32917289,2050.1,2049.1,1.26601154]
[1773110619451,3.32917289,2050.1,2049.1,2.48604599]
[1773110619981,3.32917289,2050.1,2049.1,1.26601154]
[1773110620161,1.21951219,2050.0,2049.2,1.26601154]
[1773110620357,5.64630142,2050.4,2049.2,1.26601154]
[1773110620358,1.21933375,2050.3,2049.2,1.26601154]
[1773110621151,2.61733375,2050.3,2049.2,1.26601154]
[1773110623080,2.61733375,2050.3,2049.2,2.48599677]
[1773110623285,4.87570361,2051.0,2049.3,1.26601154]
[1773110623600,3.32917289,2050.6,2049.3,1.26601154]
[1773110623898,1.397,2050.5,2049.3,1.26601154]
[1773110624292,1.21927428,2050.4,2049.4,1.26601154]
[1773110626500,1.21927428,2050.4,2049.6,1.26601154]
[1773110627896,3.32917289,2050.3,2049.6,1.26601154]
[1773110628218,3.32917289,2050.3,2049.5,0.001]
[1773110628505,1.21939322,2050.2,2049.5,0.001]
[1773110629232,3.32917289,2050.0,2049.3,0.001]
[1773110629519,1.394,2049.9,2049.3,0.001]
[1773110630603,1.21963118,2049.8,2049.0,0.001]
[1773110630812,3.32917289,2049.7,2049.0,0.001]
[1773110631586,3.33614368,2049.6,2049.0,0.001]
[1773110632421,1.2198097,2049.5,2049.0,0.001]
[1773110633820,1.391,2049.4,2049.0,0.001]
[1773110633994,1.2198097,2049.5,2049.0,0.001]
[1773110636796,1.11714493,2049.5,2049.0,0.001]
[1773110637042,1.21951785,2050.0,2049.1,1.22978954]
[1773110637350,2.60950671,2050.1,2049.1,1.22978954]
[1773110638848,2.60950671,2050.1,2049.1,2.44980454]
[1773110639214,4.87748754,2050.3,2049.2,1.22978954]
[1773110639414,1.388,2050.2,2049.2,1.22978954]
[1773110641129,1.2194527,2050.1,2049.3,2.44971829]
[1773110641641,1.2194527,2050.1,2049.4,1.22978954]
[1773110641844,3.33614368,2049.9,2049.3,0.001]
[1773110642049,1.21897894,2050.0,2049.3,0.001]
[1773110642437,1.21897894,2050.0,2049.0,0.001]
[1773110642438,1.21897894,2049.9,2049.0,0.001]
[1773110642583,1.386,2049.9,2049.0,0.001]
[1773110643151,1.21963118,2049.8,2049.0,0.001]